fUSD/lending_fUSD_20250120
["ID","MTS","AMOUNT","RATE_DAILY","PERIOD"]
[349655683,1737359439374,-1081.27,0.00019772,2]
[349655684,1737359439383,-500.0,0.00019772,2]
[349655685,1737359439394,-500.0,0.00019772,2]
[349655686,1737359439403,-1328.3,0.00019772,2]
[349655687,1737359439414,-500.0,0.00019772,2]
[349655688,1737359439423,-500.0,0.00019772,2]
[349655689,1737359439433,-500.0,0.00019772,2]
[349655690,1737359439445,-500.0,0.00019772,2]
[349655691,1737359439454,-527.47229328,0.00019772,2]
[349655692,1737359439464,-760.12,0.00019772,2]
[349655693,1737359439473,-602.37712462,0.00019772,2]
[349655694,1737359439483,-4201.07,0.00019772,2]
[349655695,1737359439492,-500.0,0.00019772,2]
[349655696,1737359439501,-500.0,0.00019772,2]
[349655697,1737359439510,-1224.29,0.00019772,2]
[349655698,1737359439520,-500.0,0.00019772,2]
[349655699,1737359439529,-500.0,0.00019772,2]
[349655700,1737359439538,-736.71,0.00019772,2]
[349655701,1737359439548,-1940.39,0.00019772,2]
[349655702,1737359439558,-827.491924,0.00019772,2]
[349655703,1737359439568,-500.0,0.00019772,2]
[349655704,1737359439580,-500.0,0.00019772,2]
[349655705,1737359439589,-500.0,0.00019772,2]
[349655706,1737359439598,-709.33,0.00019772,2]
[349655707,1737359439607,-500.0,0.00019772,2]
[349655708,1737359439616,-500.0,0.00019772,2]
[349655709,1737359439625,-1825.22,0.00019772,2]
[349655710,1737359439634,-500.0,0.00019772,2]
[349655711,1737359439644,-632.12,0.00019772,2]
[349655712,1737359439653,-500.0,0.00019772,2]
[349655713,1737359439663,-805.39,0.00019772,2]
[349655714,1737359439673,-500.0,0.00019772,2]
[349655715,1737359439682,-1042.99,0.00019772,2]
[349655716,1737359439691,-3582.35,0.00019772,2]
[349655717,1737359439701,-500.0,0.00019772,2]
[349655718,1737359439710,-717.32,0.00019772,2]
[349655719,1737359439719,-1796.622825,0.00019772,2]
[349655720,1737359439728,-500.0,0.00019772,2]
[349655721,1737359439738,-500.0,0.00019772,2]
[349655722,1737359439747,-500.0,0.00019772,2]
[349655723,1737359439757,-7720.87,0.00019772,2]
[349655724,1737359439766,-500.0,0.00019772,2]
[349655725,1737359439775,-500.0,0.00019772,2]
[349655726,1737359439784,-2283.23,0.00019772,2]
[349655727,1737359439794,-500.0,0.00019772,2]
[349655728,1737359439803,-2234.39,0.00019772,2]
[349655729,1737359439812,-500.0,0.00019772,2]
[349655730,1737359439821,-488.32144201,0.00019772,2]
[349655731,1737359439832,-618.5,0.00019772,2]
[349655732,1737359439841,-500.0,0.00019772,2]
[349655733,1737359439850,-500.0,0.00019772,2]
[349655734,1737359439859,-713.08,0.00019772,2]
[349655735,1737359439868,-500.0,0.00019772,2]
[349655736,1737359439878,-500.0,0.00019772,2]
[349655737,1737359439887,-547.72,0.00019772,2]
[349655738,1737359439896,-403.33739336,0.00019772,2]
[349655739,1737359439905,-577.42,0.00019772,2]
[349655740,1737359439914,-500.0,0.00019772,2]
[349655741,1737359439923,-200.0,0.00019772,2]
[349655742,1737359439932,-500.0,0.00019772,2]
[349655743,1737359439941,-1588.31,0.00019772,2]
[349655744,1737359439951,-1379.24,0.00019772,2]
[349655745,1737359439961,-1036.42,0.00019772,2]
[349655746,1737359439971,-500.0,0.00019772,2]
[349655747,1737359439981,-800.07,0.00019772,2]
[349655748,1737359439991,-1680.43,0.00019772,2]
[349655749,1737359440000,-3857.97,0.00019772,2]
[349655750,1737359440010,-766.22,0.00019772,2]
[349655752,1737359440020,-292.15543695,0.00019772,2]
[349655753,1737359440030,-500.0,0.00019772,2]
[349655754,1737359440039,-500.0,0.00019772,2]
[349655755,1737359440048,-623.72,0.00019772,2]
[349655756,1737359440058,-862.26,0.00019772,2]
[349655757,1737359440067,-681.05,0.00019772,2]
[349655758,1737359440084,-285.28580577,0.00019772,2]
[349655759,1737359440093,-651.15,0.00019772,2]
[349655760,1737359440103,-526.75,0.00019772,2]
[349655761,1737359440113,-1464.4,0.00019772,2]
[349655762,1737359440123,-512.99303864,0.00019772,2]
[349655763,1737359440133,-500.0,0.00019772,2]
[349655764,1737359440142,-1742.5,0.00019772,2]
[349655765,1737359440153,-988.26,0.00019772,2]
[349655766,1737359440163,-500.0,0.00019772,2]
[349655767,1737359440173,-1929.02,0.00019772,2]
[349655769,1737359440183,-500.0,0.00019772,2]
[349655772,1737359440192,-500.0,0.00019772,2]
[349655774,1737359440202,-554.29,0.00019772,2]
[349655775,1737359440212,-500.0,0.00019772,2]
[349655776,1737359440221,-2608.99,0.00019772,2]
[349655777,1737359440231,-702.59,0.00019772,2]
[349655778,1737359440242,-500.0,0.00019772,2]
[349655779,1737359440252,-500.0,0.00019772,2]
[349655780,1737359440262,-500.0,0.00019772,2]
[349655781,1737359440273,-500.0,0.00019772,2]
[349655782,1737359440283,-892.76,0.00019772,2]
[349655783,1737359440294,-3292.27,0.00019772,2]
[349655784,1737359440303,-1170.41,0.00019772,2]
[349655785,1737359440314,-2063.8,0.00019772,2]
[349655786,1737359440325,-500.0,0.00019772,2]
[349655787,1737359440339,-500.0,0.00019772,2]
[349655788,1737359440349,-500.0,0.00019772,2]
[349655789,1737359440358,-500.0,0.00019772,2]
[349655790,1737359440368,-3539.58,0.00019772,2]
[349655791,1737359440378,-697.16,0.00019772,2]
[349655792,1737359440388,-500.0,0.00019772,2]
[349655793,1737359440400,-500.0,0.00019772,2]
[349655794,1737359440412,-500.0,0.00019772,2]
[349655795,1737359440422,-2023.85,0.00019772,2]
[349655796,1737359440432,-536.40177307,0.00019772,2]
[349655797,1737359440443,-669.59,0.00019772,2]
[349655798,1737359440452,-500.0,0.00019772,2]
[349655799,1737359440462,-296.74194142,0.00019772,2]
[349655800,1737359440472,-1075.27,0.00019772,2]
[349655801,1737359440481,-500.0,0.00019772,2]
[349655802,1737359440492,-3688.89,0.00019772,2]
[349655803,1737359440502,-500.0,0.00019772,2]
[349655804,1737359440512,-1038.42,0.00019772,2]
[349655805,1737359440522,-500.0,0.00019772,2]
[349655806,1737359440531,-500.0,0.00019772,2]
[349655807,1737359440541,-838.98,0.00019772,2]
[349655808,1737359440550,-5490.4,0.00019772,2]
[349655809,1737359440559,-500.0,0.00019772,2]
[349655810,1737359440569,-1891.28,0.00019772,2]
[349655811,1737359440583,-2548.07,0.00019772,2]
[349655812,1737359440593,-1422.79,0.00019772,2]
[349655813,1737359440602,-500.0,0.00019772,2]
[349655814,1737359440611,-500.0,0.00019772,2]
[349655815,1737359440621,-500.0,0.00019772,2]
[349655816,1737359440631,-500.0,0.00019772,2]
[349655817,1737359440640,-500.0,0.00019772,2]
[349655818,1737359440649,-500.0,0.00019772,2]
[349655819,1737359440658,-2090.87,0.00019772,2]
[349655820,1737359440668,-572.86,0.00019772,2]
[349655821,1737359440677,-500.0,0.00019772,2]
[349655822,1737359440686,-250.0,0.00019779,2]
[349655823,1737359440695,-367.81,0.00019802,2]
[349655824,1737359440704,-250.0,0.00019877,2]
[349655825,1737359440713,-476.93045253,0.00019919,2]
[349655826,1737359440723,-563.66658582,0.00019954,2]
[349655827,1737359440732,-500.0,0.00020045,2]
[349655828,1737359440741,-500.0,0.00020045,2]
[349655829,1737359440750,-500.0,0.00020045,2]
[349655830,1737359440760,-623.57,0.00020045,2]
[349655831,1737359440770,-500.0,0.00020045,2]
[349655832,1737359440779,-565.14,0.00020045,2]
[349655833,1737359440788,-568.28,0.00020045,2]
[349655834,1737359440797,-500.0,0.00020045,2]
[349655835,1737359440806,-500.0,0.00020045,2]
[349655836,1737359440815,-500.0,0.00020045,2]
[349655837,1737359440824,-857.34,0.00020045,2]
[349655838,1737359440836,-500.0,0.00020045,2]
[349655839,1737359440845,-920.18,0.00020045,2]
[349655840,1737359440854,-500.0,0.00020045,2]
[349655841,1737359440863,-500.0,0.00020045,2]
[349655842,1737359440872,-904.7,0.00020045,2]
[349655843,1737359440881,-503.57077862,0.00020045,2]
[349655844,1737359440890,-500.0,0.00020045,2]
[349655845,1737359440899,-500.0,0.00020045,2]
[349655846,1737359440909,-500.0,0.00020045,2]
[349655847,1737359440918,-500.0,0.00020045,2]
[349655848,1737359440927,-500.0,0.00020045,2]
[349655849,1737359440936,-500.0,0.00020045,2]
[349655850,1737359440945,-547.03,0.00020045,2]
[349655851,1737359440954,-500.0,0.00020045,2]
[349655852,1737359440964,-229.25613425,0.00020045,2]
[349655853,1737359440973,-521.5,0.00020045,2]
[349655854,1737359440982,-674.17,0.00020045,2]
[349655855,1737359440992,-500.0,0.00020045,2]
[349655856,1737359441001,-986.2,0.00020045,2]
[349655857,1737359441010,-1227.55,0.00020045,2]
[349655858,1737359441018,-1198.63,0.00020045,2]
[349655859,1737359441027,-500.0,0.00020045,2]
[349655860,1737359441038,-618.51,0.00020045,2]
[349655861,1737359441049,-1043.44,0.00020045,2]
[349655862,1737359441058,-500.0,0.00020045,2]
[349655863,1737359441069,-1295.79,0.00020045,2]
[349655864,1737359441079,-500.0,0.00020045,2]
[349655865,1737359441088,-891.15,0.00020045,2]
[349655866,1737359441097,-500.0,0.00020045,2]
[349655867,1737359441106,-500.0,0.00020045,2]
[349655868,1737359441115,-500.0,0.00020045,2]
[349655869,1737359441124,-1542.54,0.00020045,2]
[349655870,1737359441133,-500.0,0.00020045,2]
[349655871,1737359441142,-868.61,0.00020045,2]
[349655872,1737359441151,-1199.92,0.00020045,2]
[349655873,1737359441160,-1570.7,0.00020045,2]
[349655874,1737359441169,-1171.48,0.00020045,2]
[349655875,1737359441178,-1179.9,0.00020045,2]
[349655876,1737359441187,-500.0,0.00020045,2]
[349655877,1737359441196,-676.03,0.00020045,2]
[349655878,1737359441205,-1089.01,0.00020045,2]
[349655879,1737359441214,-1779.33,0.00020045,2]
[349655880,1737359441223,-1123.51,0.00020045,2]
[349655881,1737359441231,-824.59,0.00020045,2]
[349655882,1737359441240,-702.58,0.00020045,2]
[349655883,1737359441250,-1313.53,0.00020045,2]
[349655884,1737359441259,-500.0,0.00020045,2]
[349655885,1737359441268,-500.0,0.00020045,2]
[349655886,1737359441277,-918.87,0.00020045,2]
[349655887,1737359441286,-3920.49,0.00020045,2]
[349655888,1737359441295,-2465.53,0.00020045,2]
[349655889,1737359441304,-500.0,0.00020045,2]
[349655890,1737359441313,-500.0,0.00020045,2]
[349655891,1737359441322,-729.31,0.00020045,2]
[349655892,1737359441333,-4948.6,0.00020045,2]
[349655893,1737359441436,-500.0,0.00020045,2]
[349655894,1737359441458,-500.0,0.00020045,2]
[349655895,1737359441467,-500.0,0.00020045,2]
[349655896,1737359441478,-500.0,0.00020045,2]
[349655897,1737359441487,-500.0,0.00020045,2]
[349655898,1737359441496,-500.0,0.00020045,2]
[349655899,1737359441505,-2166.66,0.00020045,2]
[349655900,1737359441515,-6379.85,0.00020045,2]
[349655901,1737359441524,-1054.71,0.00020045,2]
[349655902,1737359441533,-6445.67,0.00020045,2]
[349655903,1737359441542,-1445.58,0.00020045,2]
[349655904,1737359441551,-500.0,0.00020045,2]
[349655905,1737359441560,-2274.48,0.00020045,2]
[349655906,1737359441569,-1936.82,0.00020045,2]
[349655907,1737359441581,-1198.54,0.00020045,2]
[349655908,1737359441590,-1011.45,0.00020045,2]
[349655909,1737359441599,-2588.21,0.00020045,2]
[349655910,1737359441608,-2696.65,0.00020045,2]
[349655911,1737359441617,-500.0,0.00020045,2]
[349655912,1737359441626,-1258.39,0.00020045,2]
[349655913,1737359441635,-1079.0,0.00020045,2]
[349655914,1737359441643,-1982.52,0.00020045,2]
[349655915,1737359441654,-500.0,0.00020045,2]
[349655916,1737359441663,-1473.34,0.00020045,2]
[349655917,1737359441673,-779.6,0.00020045,2]
[349655918,1737359441683,-817.79,0.00020045,2]
[349655919,1737359441692,-4398.49,0.00020045,2]
[349655920,1737359441702,-926.31,0.00020045,2]
[349655921,1737359441711,-500.0,0.00020045,2]
[349655922,1737359441721,-1203.2,0.00020045,2]
[349655923,1737359441730,-500.0,0.00020045,2]
[349655924,1737359441740,-710.98,0.00020045,2]
[349655925,1737359441749,-500.0,0.00020045,2]
[349655926,1737359441759,-2061.96,0.00020045,2]
[349655927,1737359441770,-1482.39,0.00020045,2]
[349655928,1737359441779,-805.2,0.00020045,2]
[349655929,1737359441788,-465.32870677,0.00020045,2]
[349655930,1737359441797,-500.0,0.00020045,2]
[349655931,1737359441807,-548.96,0.00020045,2]
[349655932,1737359441815,-3448.0,0.00020045,2]
[349655933,1737359441825,-1177.2,0.00020045,2]
[349655934,1737359441835,-1792.51,0.00020045,2]
[349655935,1737359441843,-2000.07,0.00020045,2]
[349655936,1737359441852,-579.66,0.00020045,2]
[349655937,1737359441862,-500.0,0.00020045,2]
[349655938,1737359441871,-951.51,0.00020045,2]
[349655939,1737359441880,-500.0,0.00020045,2]
[349655940,1737359441889,-1668.68,0.00020045,2]
[349655941,1737359441898,-500.0,0.00020045,2]
[349655942,1737359441908,-500.0,0.00020045,2]
[349655943,1737359441917,-894.2,0.00020045,2]
[349655944,1737359441926,-907.24,0.00020045,2]
[349655945,1737359441935,-2517.18,0.00020045,2]
[349655946,1737359441944,-884.91,0.00020045,2]
[349655947,1737359441954,-500.0,0.00020045,2]
[349655948,1737359441963,-500.0,0.00020045,2]
[349655949,1737359441974,-2474.52,0.00020045,2]
[349655950,1737359441983,-1054.83,0.00020045,2]
[349655951,1737359441992,-1387.21,0.00020045,2]
[349655952,1737359442001,-464.73,0.00020045,2]
[349655953,1737359442011,-620.97,0.00020045,2]
[349655954,1737359442020,-500.0,0.00020045,2]
[349655955,1737359442030,-500.0,0.00020045,2]
[349655956,1737359442039,-500.0,0.00020045,2]
[349655957,1737359442049,-500.0,0.00020045,2]
[349655958,1737359442059,-500.0,0.00020045,2]
[349655959,1737359442069,-500.0,0.00020045,2]
[349655960,1737359442079,-681.24,0.00020045,2]
[349655961,1737359442088,-1169.54,0.00020045,2]
[349655962,1737359442098,-518.13278933,0.00020045,2]
[349655963,1737359442107,-500.0,0.00020045,2]
[349655964,1737359442117,-500.0,0.00020046,2]
[349655965,1737359442128,-594.3,0.00020046,2]
[349655966,1737359442137,-500.0,0.00020046,2]
[349655967,1737359442146,-500.0,0.00020046,2]
[349655968,1737359442156,-500.0,0.00020046,2]
[349655969,1737359442166,-500.0,0.00020046,2]
[349655970,1737359442176,-500.0,0.00020046,2]
[349655971,1737359442185,-566.20210403,0.00020046,2]
[349655972,1737359442195,-500.0,0.00020046,2]
[349655973,1737359442204,-500.0,0.00020046,2]
[349655974,1737359442213,-500.0,0.00020046,2]
[349655975,1737359442223,-746.35,0.00020046,2]
[349655976,1737359442233,-500.0,0.00020046,2]
[349655977,1737359442241,-500.0,0.00020046,2]
[349655978,1737359442250,-500.0,0.00020046,2]
[349655979,1737359442259,-355.7724635,0.00020046,2]
[349655980,1737359442268,-500.0,0.00020046,2]
[349655981,1737359442277,-500.0,0.00020046,2]
[349655982,1737359442286,-695.05,0.00020046,2]
[349655983,1737359442295,-500.0,0.00020046,2]
[349655984,1737359442304,-500.0,0.00020046,2]
[349655985,1737359442313,-500.0,0.00020046,2]
[349655986,1737359442322,-500.0,0.00020046,2]
[349655987,1737359442334,-681.98,0.00020046,2]
[349655988,1737359442344,-956.85,0.00020046,2]
[349655989,1737359442353,-500.0,0.00020046,2]
[349655990,1737359442362,-500.0,0.00020046,2]
[349655991,1737359442371,-679.77,0.00020046,2]
[349655992,1737359442380,-1162.51,0.00020046,2]
[349655993,1737359442389,-500.0,0.00020046,2]
[349655994,1737359442399,-500.0,0.00020046,2]
[349655995,1737359442409,-500.0,0.00020046,2]
[349655996,1737359442419,-613.78,0.00020046,2]
[349655997,1737359442429,-500.0,0.00020046,2]
[349655998,1737359442439,-500.0,0.00020046,2]
[349655999,1737359442448,-998.73,0.00020046,2]
[349656000,1737359442458,-500.0,0.00020046,2]
[349656001,1737359442467,-500.0,0.00020046,2]
[349656002,1737359442476,-721.37,0.00020046,2]
[349656003,1737359442487,-803.78,0.00020046,2]
[349656004,1737359442496,-500.0,0.00020046,2]
[349656005,1737359442505,-500.0,0.00020046,2]
[349656006,1737359442514,-564.33,0.00020046,2]
[349656007,1737359442523,-500.0,0.00020046,2]
[349656008,1737359442532,-503.83,0.00020046,2]
[349656009,1737359442541,-500.0,0.00020046,2]
[349656010,1737359442550,-500.0,0.00020046,2]
[349656011,1737359442559,-876.13,0.00020046,2]
[349656012,1737359442568,-500.0,0.00020046,2]
[349656013,1737359442580,-500.0,0.00020046,2]
[349656014,1737359442590,-500.0,0.00020046,2]
[349656015,1737359442600,-500.0,0.00020046,2]
[349656016,1737359442610,-500.0,0.00020046,2]
[349656017,1737359442619,-591.89,0.00020046,2]
[349656018,1737359442628,-500.0,0.00020046,2]
[349656019,1737359442638,-500.0,0.00020046,2]
[349656020,1737359442647,-1170.98,0.00020046,2]
[349656021,1737359442656,-500.0,0.00020046,2]
[349656022,1737359442665,-500.0,0.00020046,2]
[349656023,1737359442674,-500.0,0.00020046,2]
[349656024,1737359442684,-500.0,0.00020046,2]
[349656025,1737359442693,-500.0,0.00020046,2]
[349656026,1737359442702,-192.5794041,0.00020046,2]
[349656027,1737359442712,-1457.34,0.00020046,2]
[349656028,1737359442722,-1192.12,0.00020046,2]
[349656029,1737359442731,-1630.39,0.00020046,2]
[349656030,1737359442741,-500.0,0.00020046,2]
[349656031,1737359442750,-1752.84,0.00020046,2]
[349656032,1737359442760,-500.0,0.00020046,2]
[349656033,1737359442769,-500.0,0.00020046,2]
[349656034,1737359442778,-500.0,0.00020046,2]
[349656035,1737359442789,-776.12,0.00020046,2]
[349656036,1737359442798,-798.28,0.00020046,2]
[349656037,1737359442807,-500.0,0.00020046,2]
[349656038,1737359442817,-500.0,0.00020046,2]
[349656039,1737359442826,-500.0,0.00020046,2]
[349656040,1737359442843,-300.58345539,0.00020046,2]
[349656050,1737359443188,-199.41654461,0.00020046,2]
[349656051,1737359443197,-300.58345539,0.00020046,2]
[349656081,1737359444035,337.85,0.00019161,2]
[349656082,1737359444184,-500.0,0.00019497,2]
[349656083,1737359444193,-500.0,0.00019497,2]
[349656084,1737359444202,-500.0,0.00019497,2]
[349656085,1737359444211,-2380.63,0.00019497,2]
[349656086,1737359444220,-2153.11,0.00019498,2]
[349656087,1737359444230,-505.90113846,0.00019498,2]
[349656088,1737359444240,-500.0,0.00019771,2]
[349656089,1737359444249,-2153.11,0.00019772,2]
[349656090,1737359444258,-500.0,0.00020045,2]
[349656091,1737359444267,-11.44287881,0.00020046,2]
[349656092,1737359444276,-621.6,0.00020046,2]
[349656093,1737359444285,-500.0,0.00020046,2]
[349656094,1737359444294,-500.0,0.00020046,2]
[349656095,1737359444303,-1138.23,0.00020046,2]
[349656096,1737359444312,-500.0,0.00020046,2]
[349656097,1737359444321,-873.64,0.00020046,2]
[349656098,1737359444332,-500.0,0.00020046,2]
[349656099,1737359444341,-500.0,0.00020046,2]
[349656100,1737359444350,-1081.27,0.00020046,2]
[349656101,1737359444359,-500.0,0.00020046,2]
[349656102,1737359444368,-500.0,0.00020046,2]
[349656103,1737359444377,-1328.3,0.00020046,2]
[349656104,1737359444386,-500.0,0.00020046,2]
[349656105,1737359444396,-500.0,0.00020046,2]
[349656106,1737359444405,-500.0,0.00020046,2]
[349656107,1737359444417,-500.0,0.00020046,2]
[349656108,1737359444427,-760.12,0.00020046,2]
[349656109,1737359444436,-4201.07,0.00020046,2]
[349656110,1737359444446,-500.0,0.00020046,2]
[349656111,1737359444455,-500.0,0.00020046,2]
[349656112,1737359444465,-1224.29,0.00020046,2]
[349656113,1737359444474,-322.50070724,0.00020046,2]
[349656114,1737359444484,-736.71,0.00020046,2]
[349656115,1737359444493,-1940.39,0.00020046,2]
[349656116,1737359444502,-827.491924,0.00020046,2]
[349656117,1737359444511,-500.0,0.00020046,2]
[349656118,1737359444521,-709.33,0.00020046,2]
[349656119,1737359444530,-500.0,0.00020046,2]
[349656120,1737359444540,-500.0,0.00020046,2]
[349656121,1737359444550,-1825.22,0.00020046,2]
[349656122,1737359444560,-500.0,0.00020046,2]
[349656123,1737359444569,-632.12,0.00020046,2]
[349656124,1737359444581,-500.0,0.00020046,2]
[349656125,1737359444590,-3582.35,0.00020046,2]
[349656126,1737359444599,-500.0,0.00020046,2]
[349656127,1737359444608,-717.32,0.00020046,2]
[349656128,1737359444617,-1796.622825,0.00020046,2]
[349656129,1737359444626,-473.55882306,0.00020046,2]
[349656130,1737359444636,-500.0,0.00020046,2]
[349656131,1737359444645,-500.0,0.00020046,2]
[349656132,1737359444654,-7720.87,0.00020046,2]
[349656133,1737359444663,-500.0,0.00020046,2]
[349656134,1737359444672,-500.0,0.00020046,2]
[349656135,1737359444681,-2283.23,0.00020046,2]
[349656136,1737359444690,-500.0,0.00020046,2]
[349656137,1737359444699,-2234.39,0.00020046,2]
[349656138,1737359444708,-500.0,0.00020046,2]
[349656139,1737359444717,-618.5,0.00020046,2]
[349656140,1737359444727,-500.0,0.00020046,2]
[349656141,1737359444737,-500.0,0.00020046,2]
[349656142,1737359444746,-713.08,0.00020046,2]
[349656143,1737359444756,-500.0,0.00020046,2]
[349656144,1737359444765,-500.0,0.00020046,2]
[349656145,1737359444774,-547.72,0.00020046,2]
[349656146,1737359444783,-577.42,0.00020046,2]
[349656147,1737359444792,-500.0,0.00020046,2]
[349656148,1737359444801,-200.0,0.00020046,2]
[349656149,1737359444809,-500.0,0.00020046,2]
[349656150,1737359444919,-1588.31,0.00020046,2]
[349656151,1737359444932,-1379.24,0.00020046,2]
[349656152,1737359444941,-1036.42,0.00020046,2]
[349656153,1737359444950,-500.0,0.00020046,2]
[349656154,1737359444959,-800.07,0.00020046,2]
[349656155,1737359444968,-1680.43,0.00020046,2]
[349656156,1737359444979,-3857.97,0.00020046,2]
[349656157,1737359444988,-766.22,0.00020046,2]
[349656158,1737359444997,-500.0,0.00020046,2]
[349656159,1737359445006,-500.0,0.00020046,2]
[349656160,1737359445015,-623.72,0.00020046,2]
[349656161,1737359445024,-862.26,0.00020046,2]
[349656162,1737359445033,-681.05,0.00020046,2]
[349656163,1737359445043,-651.15,0.00020046,2]
[349656164,1737359445052,-526.75,0.00020046,2]
[349656165,1737359445061,-1464.4,0.00020046,2]
[349656166,1737359445070,-500.0,0.00020046,2]
[349656167,1737359445083,-1742.5,0.00020046,2]
[349656168,1737359445093,-988.26,0.00020046,2]
[349656169,1737359445102,-500.0,0.00020046,2]
[349656170,1737359445111,-1929.02,0.00020046,2]
[349656171,1737359445121,-500.0,0.00020046,2]
[349656172,1737359445130,-500.0,0.00020046,2]
[349656173,1737359445139,-554.29,0.00020046,2]
[349656174,1737359445148,-500.0,0.00020046,2]
[349656175,1737359445157,-2608.99,0.00020046,2]
[349656176,1737359445166,-702.59,0.00020046,2]
[349656177,1737359445175,-500.0,0.00020046,2]
[349656178,1737359445184,-500.0,0.00020046,2]
[349656179,1737359445193,-500.0,0.00020046,2]
[349656180,1737359445202,-892.76,0.00020046,2]
[349656181,1737359445211,-1170.41,0.00020046,2]
[349656182,1737359445220,-2063.8,0.00020046,2]
[349656183,1737359445229,-3292.27,0.00020046,2]
[349656184,1737359445238,-500.0,0.00020046,2]
[349656185,1737359445247,-500.0,0.00020046,2]
[349656186,1737359445257,-500.0,0.00020046,2]
[349656187,1737359445266,-500.0,0.00020046,2]
[349656188,1737359445275,-3539.58,0.00020046,2]
[349656189,1737359445284,-697.16,0.00020046,2]
[349656190,1737359445293,-500.0,0.00020046,2]
[349656191,1737359445302,-270.87757773,0.00020046,2]
[349656192,1737359445311,-500.0,0.00020046,2]
[349656193,1737359445320,-2023.85,0.00020046,2]
[349656194,1737359445332,-500.0,0.00020046,2]
[349656195,1737359445341,-471.61201391,0.00020046,2]
[349656196,1737359445399,-197.97798609,0.00020046,2]
[349656197,1737359445410,-1075.27,0.00020046,2]
[349656198,1737359445419,-500.0,0.00020046,2]
[349656199,1737359445428,-3688.89,0.00020046,2]
[349656200,1737359445438,-500.0,0.00020046,2]
[349656201,1737359445449,-1038.42,0.00020046,2]
[349656202,1737359445458,-374.58322504,0.00020046,2]
[349656203,1737359445468,-838.98,0.00020046,2]
[349656204,1737359445479,-5490.4,0.00020046,2]
[349656205,1737359445488,-1891.28,0.00020046,2]
[349656206,1737359445498,-2548.07,0.00020046,2]
[349656207,1737359445507,-1422.79,0.00020046,2]
[349656208,1737359445516,-500.0,0.00020046,2]
[349656209,1737359445525,-500.0,0.00020046,2]
[349656210,1737359445534,-500.0,0.00020046,2]
[349656211,1737359445543,-500.0,0.00020046,2]
[349656212,1737359445552,-500.0,0.00020046,2]
[349656213,1737359445561,-2090.87,0.00020046,2]
[349656214,1737359445571,-572.86,0.00020046,2]
[349656215,1737359445580,-2153.11,0.00020046,2]
[349656216,1737359445591,-250.0,0.00020075,2]
[349656217,1737359445600,-476.93045253,0.00020166,2]
[349656218,1737359445610,-172.24577981,0.00020219,2]
[349656219,1737359445619,-563.66658582,0.00020232,2]
[349656220,1737359445628,-179.438524,0.0002031,2]
[349656221,1737359445638,-500.0,0.00020319,2]
[349656222,1737359445647,-623.57,0.00020319,2]
[349656223,1737359445657,-500.0,0.00020319,2]
[349656224,1737359445666,-565.14,0.00020319,2]
[349656225,1737359445676,-568.28,0.00020319,2]